fUST/lending_fUST_20260423
["ID","MTS","AMOUNT","RATE_DAILY","PERIOD"]
[421003887,1776901845869,-208.662112,0.00014102,2]
[421003889,1776901845878,-208.662112,0.00014102,2]
[421003890,1776901845887,-208.662115,0.00014102,2]
[421003891,1776901845897,-151.0,0.00014102,2]
[421003892,1776901845906,-151.0,0.00014102,2]
[421003893,1776901845915,-151.0,0.00014102,2]
[421003894,1776901845925,-151.0,0.00014102,2]
[421003895,1776901845934,-151.0,0.00014102,2]
[421003896,1776901845943,-151.0,0.00014102,2]
[421003897,1776901845953,-151.0,0.00014102,2]
[421003898,1776901845962,-151.0,0.00014102,2]
[421003899,1776901845971,-151.0,0.00014102,2]
[421003900,1776901845980,-151.0,0.00014102,2]
[421003901,1776901845989,-151.0,0.00014102,2]
[421003903,1776901845998,-151.0,0.00014102,2]
[421003905,1776901846009,-151.0,0.00014102,2]
[421003906,1776901846018,-151.0,0.00014102,2]
[421003907,1776901846027,-151.0,0.00014102,2]
[421003908,1776901846036,-151.0,0.00014102,2]
[421003909,1776901846045,-182.835518,0.00014102,2]
[421003910,1776901846055,-151.0,0.00014102,2]
[421003911,1776901846063,-151.0,0.00014102,2]
[421003912,1776901846072,-151.0,0.00014102,2]
[421003913,1776901846082,-151.0,0.00014102,2]
[421003914,1776901846091,-151.0,0.00014102,2]
[421003915,1776901846100,-151.0,0.00014102,2]
[421003916,1776901846109,-188.0,0.00014102,2]
[421003917,1776901846117,-774.019777,0.00014102,2]
[421003918,1776901846126,-774.019777,0.00014102,2]
[421003919,1776901846135,-151.0,0.00014102,2]
[421003920,1776901846144,-774.019777,0.00014102,2]
[421003921,1776901846153,-151.0,0.00014102,2]
[421003922,1776901846162,-151.0,0.00014102,2]
[421003923,1776901846171,-774.019777,0.00014102,2]
[421003924,1776901846181,-774.019777,0.00014102,2]
[421003925,1776901846190,-151.0,0.00014102,2]
[421003926,1776901846199,-774.019777,0.00014102,2]
[421003927,1776901846207,-151.0,0.00014102,2]
[421003928,1776901846217,-176.826172,0.00014102,2]
[421003929,1776901846226,-151.460806,0.00014102,2]
[421003930,1776901846235,-774.019777,0.00014102,2]
[421003931,1776901846244,-774.019777,0.00014102,2]
[421003932,1776901846254,-774.019777,0.00014102,2]
[421003934,1776901846263,-774.019777,0.00014102,2]
[421003935,1776901846272,-774.019777,0.00014102,2]
[421003936,1776901846280,-774.019777,0.00014102,2]
[421003937,1776901846290,-151.0,0.00014102,2]
[421003938,1776901846298,-151.0,0.00014102,2]
[421003939,1776901846307,-151.0,0.00014102,2]
[421003940,1776901846316,-393.96,0.00014102,2]
[421003941,1776901846325,-393.96,0.00014102,2]
[421003942,1776901846334,-393.96,0.00014102,2]
[421003943,1776901846343,-393.96,0.00014102,2]
[421003944,1776901846352,-303.258157,0.00014118,2]
[421003945,1776901846362,-303.258157,0.00014118,2]
[421003947,1776901846371,-303.258157,0.00014118,2]
[421003949,1776901846380,-303.258157,0.00014118,2]
[421003951,1776901846389,-299.299202,0.00014118,2]
[421003953,1776901846398,-299.299202,0.00014118,2]
[421003955,1776901846407,-299.299202,0.00014118,2]
[421003957,1776901846416,-299.299202,0.00014118,2]
[421003959,1776901846425,-257.343951,0.00014118,2]
[421003961,1776901846433,-257.343951,0.00014118,2]
[421003963,1776901846442,-257.343951,0.00014118,2]
[421003965,1776901846451,-168.899047,0.00014118,2]
[421003967,1776901846460,-257.343951,0.00014118,2]
[421003969,1776901846469,-151.0,0.00014118,2]
[421003971,1776901846478,-168.899047,0.00014118,2]
[421003973,1776901846488,-168.899047,0.00014118,2]
[421003975,1776901846497,-151.0,0.00014118,2]
[421003977,1776901846505,-168.899047,0.00014118,2]
[421003979,1776901846515,-151.0,0.00014118,2]
[421003981,1776901846524,-298.506,0.00014118,2]
[421003983,1776901846534,-151.0,0.00014118,2]
[421003985,1776901846543,-151.0,0.00014118,2]
[421003987,1776901846551,-151.0,0.00014118,2]
[421003989,1776901846561,-151.0,0.00014118,2]
[421003991,1776901846570,-3384.0049242,0.00014119,2]
[421003993,1776901846579,-265.305485,0.00014119,2]
[421003995,1776901846588,-265.305485,0.00014119,2]
[421003997,1776901846598,-265.305485,0.00014119,2]
[421003999,1776901846607,-265.305485,0.00014119,2]
[421004001,1776901846616,-500.0,0.00014126,2]
[421004003,1776901846626,-155.0,0.00014159,2]
[421004005,1776901846635,-2208.0,0.00014209,2]
[421004006,1776901846644,-1408.0,0.00014209,2]
[421004008,1776901846653,-645.0,0.00014209,2]
[421004010,1776901846663,-15380.3736,0.00014227,2]
[421004012,1776901846672,-265.305485,0.00014227,2]
[421004015,1776901846683,-265.305485,0.00014227,2]
[421004017,1776901846692,-265.305485,0.00014227,2]
[421004019,1776901846701,-265.305485,0.00014227,2]
[421004021,1776901846710,-303.258157,0.00014227,2]
[421004023,1776901846719,-303.258157,0.00014227,2]
[421004025,1776901846728,-303.258157,0.00014227,2]
[421004027,1776901846738,-303.258157,0.00014227,2]
[421004028,1776901846747,-303.258157,0.00014227,2]
[421004030,1776901846756,-303.258157,0.00014227,2]
[421004032,1776901846766,-303.258157,0.00014227,2]
[421004034,1776901846775,-303.258157,0.00014227,2]
[421004036,1776901846784,-299.299202,0.00014227,2]
[421004038,1776901846794,-299.299202,0.00014227,2]
[421004040,1776901846803,-299.299202,0.00014227,2]
[421004042,1776901846813,-299.299202,0.00014227,2]
[421004044,1776901846822,-299.299202,0.00014227,2]
[421004047,1776901846832,-299.299202,0.00014227,2]
[421004049,1776901846841,-299.299202,0.00014227,2]
[421004051,1776901846850,-299.299202,0.00014227,2]
[421004053,1776901846859,-257.343951,0.00014227,2]
[421004055,1776901846868,-257.343951,0.00014227,2]
[421004057,1776901846877,-257.343951,0.00014227,2]
[421004059,1776901846887,-257.343951,0.00014227,2]
[421004061,1776901846896,-257.343951,0.00014227,2]
[421004063,1776901846905,-257.343951,0.00014227,2]
[421004065,1776901846914,-257.343951,0.00014227,2]
[421004067,1776901846923,-257.343951,0.00014227,2]
[421004069,1776901846933,-151.0,0.00014227,2]
[421004071,1776901846941,-151.0,0.00014227,2]
[421004073,1776901846951,-168.899047,0.00014227,2]
[421004075,1776901846960,-168.899047,0.00014227,2]
[421004077,1776901846969,-168.899047,0.00014227,2]
[421004079,1776901846982,-168.899047,0.00014227,2]
[421004081,1776901846993,-168.899047,0.00014227,2]
[421004083,1776901847002,-168.899047,0.00014227,2]
[421004085,1776901847011,-151.0,0.00014227,2]
[421004087,1776901847021,-151.0,0.00014227,2]
[421004089,1776901847030,-168.899047,0.00014227,2]
[421004091,1776901847040,-168.899047,0.00014227,2]
[421004093,1776901847049,-151.0,0.00014227,2]
[421004095,1776901847059,-151.0,0.00014227,2]
[421004097,1776901847068,-151.0,0.00014227,2]
[421004099,1776901847079,-151.0,0.00014227,2]
[421004101,1776901847088,-151.0,0.00014227,2]
[421004103,1776901847097,-151.0,0.00014227,2]
[421004105,1776901847107,-151.0,0.00014227,2]
[421004107,1776901847117,-151.0,0.00014227,2]
[421004109,1776901847127,-151.0,0.00014227,2]
[421004111,1776901847138,-151.0,0.00014227,2]
[421004113,1776901847147,-155.0,0.00014232,2]
[421004116,1776901847159,-1859.87068882,0.0001424,2]
[421004118,1776901847170,-265.305485,0.0001424,2]
[421004120,1776901847180,-265.305485,0.0001424,2]
[421004122,1776901847190,-265.305485,0.0001424,2]
[421004124,1776901847199,-265.305485,0.0001424,2]
[421004126,1776901847208,-500.0,0.00014274,2]
[421004128,1776901847218,-258.0,0.00014278,2]
[421004130,1776901847227,-155.0,0.00014304,2]
[421004132,1776901847237,-1000.0,0.00014321,2]
[421004134,1776901847246,-576.18084303,0.00014321,2]
[421004136,1776901847256,-500.0,0.00014321,2]
[421004138,1776901847265,-1000.0,0.00014321,2]
[421004140,1776901847275,-1000.0,0.00014321,2]
[421004142,1776901847285,-1000.0,0.00014321,2]
[421004144,1776901847294,-1000.0,0.00014321,2]
[421004146,1776901847303,-4137.83435408,0.0001434,2]
[421004148,1776901847313,-500.0,0.00014375,2]
[421004150,1776901847322,-303.258157,0.00014376,2]
[421004152,1776901847331,-303.258157,0.00014376,2]
[421004154,1776901847341,-303.258157,0.00014376,2]
[421004156,1776901847350,-303.258162,0.00014376,2]
[421004158,1776901847359,-299.299202,0.00014376,2]
[421004160,1776901847369,-299.299202,0.00014376,2]
[421004162,1776901847379,-299.299202,0.00014376,2]
[421004164,1776901847388,-299.299202,0.00014376,2]
[421004166,1776901847398,-257.343951,0.00014376,2]
[421004168,1776901847407,-257.343951,0.00014376,2]
[421004170,1776901847417,-257.343951,0.00014376,2]
[421004172,1776901847426,-257.343945,0.00014376,2]
[421004174,1776901847435,-168.899047,0.00014376,2]
[421004176,1776901847445,-168.899047,0.00014376,2]
[421004178,1776901847454,-168.899047,0.00014376,2]
[421004180,1776901847464,-151.0,0.00014376,2]
[421004182,1776901847474,-168.899052,0.00014376,2]
[421004184,1776901847484,-151.0,0.00014376,2]
[421004186,1776901847493,-151.0,0.00014376,2]
[421004188,1776901847503,-151.0,0.00014376,2]
[421004190,1776901847512,-241.576444,0.00014376,2]
[421004192,1776901847522,-151.0,0.00014376,2]
[421004194,1776901847532,-155.0,0.00014376,2]
[421004196,1776901847541,-4573.31990451,0.0001444,2]
[421004198,1776901847550,-155.0,0.00014448,2]
[421004200,1776901847559,-500.0,0.00014485,2]
[421004202,1776901847568,-500.0,0.00014485,2]
[421004204,1776901847578,-181.11425492,0.00014521,2]
[421004206,1776901847587,-155.0,0.00014521,2]
[421004208,1776901847597,-4574.3409237,0.0001454,2]
[421004210,1776901847606,-265.305485,0.0001454,2]
[421004212,1776901847615,-265.305485,0.0001454,2]
[421004214,1776901847625,-265.305485,0.0001454,2]
[421004216,1776901847634,-265.305489,0.0001454,2]
[421004218,1776901847643,-500.0,0.00014548,2]
[421004220,1776901847653,-155.0,0.00014593,2]
[421004222,1776901847662,-5010.84749342,0.0001464,2]
[421004223,1776901847673,-155.0,0.00014665,2]
[421004225,1776901847682,-194.0,0.000147,2]
[421004227,1776901847691,-155.0,0.00014737,2]
[421004229,1776901847701,-5447.35406315,0.0001474,2]
[421004232,1776901847711,-183.0,0.00014796,2]
[421004234,1776901847721,-155.0,0.0001481,2]
[421004236,1776901847730,-500.0,0.00014822,2]
[421004238,1776901847739,-5883.86063287,0.0001484,2]
[421004240,1776901847748,-894.93906289,0.00014868,2]
[421004242,1776901847758,-150.0,0.00014877,2]
[421004244,1776901847767,-155.0,0.00014882,2]
[421004246,1776901847776,-7286.7691202,0.0001494,2]
[421004248,1776901847786,-155.0,0.00014954,2]
[421004250,1776901847795,-151.0,0.00015,2]
[421004252,1776901847805,-155.0,0.00015026,2]
[421004254,1776901847814,-1000.0,0.00015033,2]
[421004256,1776901847823,-1000.0,0.00015033,2]
[421004258,1776901847833,-500.0,0.00015096,2]
[421004260,1776901847843,-155.0,0.00015099,2]
[421004262,1776901847852,-410.79207881,0.00015248,2]
[421004264,1776901847862,-150.32309376,0.00015329,2]
[421004266,1776901847871,-1643.16831523,0.00015329,2]
[421004268,1776901847881,-661.61039376,0.00015329,2]
[421004270,1776901847891,-7650.5444866,0.00015452,2]
[421004272,1776901847900,-151.0,0.000155,2]
[421004274,1776901847910,-720.0,0.00015512,2]
[421004276,1776901847920,-1050.37285045,0.00015581,2]
[421004278,1776901847929,-500.0,0.00015581,2]
[421004280,1776901847939,-325.3724333,0.00015663,2]
[421004282,1776901847948,-5888.0,0.00015707,2]
[421004284,1776901847958,-5888.0,0.0001572,2]
[421004286,1776901847967,-160.0,0.00015744,2]
[421004288,1776901847977,-315.745667,0.00015744,2]
[421004290,1776901847986,-471.491335,0.00015744,2]
[421004292,1776901847996,-160.0,0.00015744,7]
[421004294,1776901848006,-271.467816,0.00015744,7]
[421004296,1776901848015,-382.935632,0.00015744,7]
[421004298,1776901848025,-160.0,0.00015744,2]
[421004300,1776901848034,-527.745187,0.00015744,2]
[421004302,1776901848043,-895.490374,0.00015744,2]
[421004304,1776901848052,-160.0,0.00015744,7]
[421004306,1776901848062,-1749.526493,0.00015744,7]
[421004308,1776901848071,-3339.052987,0.00015744,7]
[421004310,1776901848081,-179.214031,0.00015744,7]
[421004313,1776901848096,-5000.0,0.00015791,2]
[421004314,1776901848105,-179.9640072,0.00015846,2]
[421004317,1776901848115,-3697.12870927,0.00015941,2]
[421004319,1776901848124,-5888.0,0.00015961,2]
[421004321,1776901848133,-537.6845,0.00015973,2]
[421004323,1776901848143,-162.380719,0.00015973,2]
[421004325,1776901848152,-2150.738,0.00015973,2]
[421004327,1776901848162,-213.06571399,0.00015973,2]
[421004329,1776901848172,-537.6845,0.00015973,2]
[421004331,1776901848182,-445.202766,0.00015973,2]
[421004332,1776901848193,-151.0,0.00016,2]
[421004333,1776901848203,-602.172033,0.00016,2]
[421004334,1776901848213,-5888.0,0.00016024,2]
[421004336,1776901848222,-557.5788265,0.00016028,2]
[421004338,1776901848232,-194364.38539983,0.00016065,2]
[421004339,1776901848242,-173.02553932,0.00016065,2]
[421004340,1776901848252,-949.57,0.00016065,2]
[421004341,1776901848262,-500.0,0.00016073,2]
[421004342,1776901848271,-500.0,0.00016073,2]
[421004343,1776901848281,-578.20924308,0.00016083,2]
[421004344,1776901848290,-5888.0,0.00016093,2]
[421004345,1776901848300,-5888.0,0.00016093,2]
[421004346,1776901848310,-791.0,0.000161,2]
[421004347,1776901848319,-5888.0,0.00016117,2]
[421004348,1776901848329,-599.60298507,0.00016138,2]
[421004349,1776901848339,-5888.0,0.00016144,2]
[421004350,1776901848348,-621.78829552,0.00016193,2]
[421004351,1776901848358,-3135.07423249,0.00016203,2]
[421004352,1776901848368,-644.79446246,0.00016248,2]
[421004353,1776901848378,-285.0,0.00016278,2]
[421004354,1776901848388,-977.0,0.00016298,2]
[421004355,1776901848397,-668.65185757,0.00016303,2]
[421004356,1776901848407,-977.0,0.0001632,2]
[421004357,1776901848416,-168.4796845,0.00016321,2]
[421004358,1776901848426,-778.01433786,0.00016358,2]
[421004359,1776901848435,-977.0,0.00016377,2]
[421004360,1776901848445,-500.0,0.00016397,2]
[421004361,1776901848454,-151.0,0.000164,2]
[421004362,1776901848464,-1190.0,0.00016438,2]
[421004363,1776901848474,-155.0,0.00016471,2]
[421004364,1776901848484,-151.0,0.00016473,2]
[421004365,1776901848494,-2230.315306,0.00016521,2]
[421004366,1776901848503,-557.5788265,0.00016521,2]
[421004367,1776901848513,-461.67526834,0.00016521,2]
[421004368,1776901848523,-430.562274,0.00016531,2]
[421004369,1776901848533,-370.183385,0.00016531,7]
[421004370,1776901848543,-719.652527,0.00016531,2]
[421004371,1776901848552,-2385.717946,0.00016531,7]
[421004372,1776901848562,-500.0,0.0001657,2]
[421004373,1776901848572,-977.0,0.00016612,2]
[421004374,1776901848582,-1000.0,0.00016621,2]
[421004375,1776901848592,-6859.79421433,0.00016633,2]
[421004376,1776901848601,-500.0,0.0001666,2]
[421004377,1776901848612,-977.0,0.00016669,2]
[421004378,1776901848623,-977.0,0.000167,2]
[421004379,1776901848632,-150.32309376,0.00016712,7]
[421004380,1776901848642,-648.0,0.00016716,2]
[421004381,1776901848651,-648.0,0.00016716,2]
[421004382,1776901848661,-648.0,0.00016716,2]
[421004383,1776901848671,-648.0,0.00016716,2]
[421004384,1776901848680,-648.0,0.00016716,2]
[421004385,1776901848690,-648.0,0.00016716,2]
[421004386,1776901848699,-648.0,0.00016716,2]
[421004387,1776901848709,-648.0,0.00016716,2]
[421004388,1776901848719,-648.0,0.00016716,2]
[421004389,1776901848728,-648.0,0.00016716,2]
[421004390,1776901848738,-347.41390026,0.00016716,2]
[421004391,1776901848748,-648.0,0.00016716,2]
[421004392,1776901848757,-648.0,0.00016716,2]
[421004393,1776901848767,-648.0,0.00016716,2]
[421004394,1776901848777,-648.0,0.00016716,2]
[421004395,1776901848786,-648.0,0.00016716,2]
[421004396,1776901848796,-176.52891142,0.00016716,2]
[421004397,1776901848806,-151.0,0.00016716,2]
[421004398,1776901848816,-151.0,0.00016716,2]
[421004399,1776901849008,-151.0,0.00016716,2]
[421004400,1776901849018,-151.0,0.00016716,2]
[421004401,1776901849027,-151.0,0.00016716,2]
[421004402,1776901849036,-151.0,0.00016716,2]
[421004403,1776901849045,-151.0,0.00016716,2]
[421004404,1776901849055,-151.0,0.00016716,2]
[421004405,1776901849064,-155.47248505,0.00016716,2]
[421004406,1776901849073,-153.0,0.00016716,2]
[421004407,1776901849083,-153.0,0.00016716,2]
[421004408,1776901849092,-153.0,0.00016716,2]
[421004409,1776901849101,-153.0,0.00016716,2]
[421004410,1776901849110,-153.0,0.00016716,2]
[421004411,1776901849120,-153.0,0.00016716,2]
[421004412,1776901849129,-153.0,0.00016716,2]
[421004413,1776901849139,-153.0,0.00016716,2]
[421004414,1776901849148,-153.0,0.00016716,2]
[421004415,1776901849158,-153.0,0.00016716,2]
[421004416,1776901849167,-153.0,0.00016716,2]
[421004417,1776901849177,-153.0,0.00016716,2]
[421004418,1776901849187,-153.0,0.00016716,2]
[421004419,1776901849196,-153.0,0.00016716,2]
[421004420,1776901849205,-153.0,0.00016716,2]
[421004421,1776901849215,-153.0,0.00016716,2]
[421004422,1776901849224,-153.0,0.00016716,2]
[421004423,1776901849234,-153.0,0.00016716,2]
[421004424,1776901849243,-153.0,0.00016716,2]
[421004425,1776901849253,-153.0,0.00016716,2]
[421004426,1776901849262,-153.0,0.00016716,2]
[421004427,1776901849271,-153.0,0.00016716,2]
[421004428,1776901849281,-153.0,0.00016716,2]
[421004429,1776901849291,-153.0,0.00016716,2]
[421004430,1776901849301,-153.0,0.00016716,2]
[421004431,1776901849310,-153.0,0.00016716,2]
[421004432,1776901849320,-153.0,0.00016716,2]
[421004433,1776901849329,-153.0,0.00016716,2]
[421004434,1776901849339,-153.0,0.00016716,2]
[421004435,1776901849348,-153.0,0.00016716,2]
[421004436,1776901849358,-153.0,0.00016716,2]
[421004437,1776901849367,-153.0,0.00016716,2]
[421004438,1776901849377,-153.0,0.00016716,2]
[421004439,1776901849386,-153.0,0.00016716,2]
[421004440,1776901849396,-153.0,0.00016716,2]
[421004441,1776901849405,-153.0,0.00016716,2]
[421004442,1776901849414,-153.0,0.00016716,2]
[421004443,1776901849424,-153.0,0.00016716,2]
[421004444,1776901849434,-153.0,0.00016716,2]
[421004445,1776901849443,-153.0,0.00016716,2]
[421004446,1776901849453,-153.0,0.00016716,2]
[421004447,1776901849462,-153.0,0.00016716,2]
[421004448,1776901849471,-153.0,0.00016716,2]
[421004449,1776901849481,-153.0,0.00016716,2]
[421004450,1776901849495,-153.0,0.00016716,2]
[421004451,1776901849513,-153.0,0.00016716,2]
[421004452,1776901849522,-153.0,0.00016716,2]
[421004453,1776901849531,-153.0,0.00016716,2]
[421004454,1776901849540,-153.0,0.00016716,2]
[421004455,1776901849550,-206.18708313,0.00016716,2]
[421004456,1776901849559,-6566.10058766,0.00016724,2]
[421004457,1776901849569,-2643.79513346,0.00016724,2]
[421004458,1776901849578,-500.07179059,0.00016733,2]
[421004459,1776901849587,-500.40981723,0.00016733,2]
[421004460,1776901849596,-505.64143141,0.00016733,2]
[421004461,1776901849606,-500.0,0.00016733,2]
[421004462,1776901849616,-3868.99222107,0.00016754,2]
[421004463,1776901849625,-977.0,0.00016849,2]
[421004464,1776901849635,-500.0,0.0001686,2]
[421004465,1776901849644,-308.00134567,0.0001686,2]
[421004466,1776901849653,-596.18829997,0.0001686,2]
[421004467,1776901849663,-500.0,0.0001686,2]
[421004468,1776901849672,-977.0,0.00016878,2]
[421004469,1776901849682,-151.0,0.000169,2]
[421004470,1776901849691,-166.30726815,0.00016924,2]
[421004471,1776901849700,-500.0,0.00016925,2]
[421004472,1776901849709,-240.96550744,0.00016956,60]
[421004473,1776901849718,-161.162066,0.00016978,2]
[421004474,1776901849727,-1190.01,0.00016986,2]
[421004475,1776901849736,-250.0,0.00017025,4]
[421004476,1776901849745,-250.88,0.00017025,4]
[421004477,1776901849754,-250.0,0.00017025,4]
[421004478,1776901849763,-250.0,0.00017025,4]
[421004479,1776901849772,-250.0,0.00017025,4]
[421004480,1776901849782,-250.0,0.00017025,4]
[421004481,1776901849791,-250.0,0.00017025,4]
[421004482,1776901849800,-250.0,0.00017025,4]
[421004483,1776901849810,-250.0,0.00017025,2]
[421004484,1776901849819,-250.0,0.00017025,2]
[421004485,1776901849828,-250.0,0.00017025,2]
[421004486,1776901849838,-977.0,0.00017033,2]
[421004487,1776901849847,-250.0,0.00017041,4]
[421004488,1776901849856,-864.0,0.00017064,2]
[421004489,1776901849865,-2312.83697232,0.00017069,2]
[421004490,1776901849874,-578.20924308,0.00017069,2]
[421004491,1776901849883,-382.64500388,0.00017069,2]
[421004492,1776901849892,-977.0,0.00017078,2]
[421004493,1776901849901,-200.6559977,0.00017117,2]
[421004494,1776901849911,-202.05489831,0.00017126,7]
[421004495,1776901849921,-977.0,0.00017166,2]
[421004496,1776901849930,-1500.0,0.00017168,2]
[421004497,1776901849939,-1325.12869146,0.000172,2]
[421004498,1776901849948,-157.0,0.00017205,3]
[421004499,1776901849956,-160.0,0.00017213,2]
[421004500,1776901849965,-151.0,0.00017301,2]
[421004501,1776901849974,-325.3724333,0.00017301,2]
[421004502,1776901849983,-281.0110984,0.00017317,2]
[421004503,1776901849992,-168.3888056,0.00017342,2]
[421004504,1776901850001,-977.0,0.00017389,2]
[421004505,1776901850010,-151.0,0.000174,2]
[421004506,1776901850019,-1325.12869146,0.000174,2]
[421004507,1776901850028,-1000.0,0.00017408,2]
[421004508,1776901850037,-1190.0,0.00017534,2]
[421004509,1776901850046,-977.0,0.00017574,2]
[421004510,1776901850055,-1325.12869146,0.000176,2]
[421004511,1776901850064,-977.0,0.00017611,2]
[421004512,1776901850073,-2398.4119403,0.00017617,2]
[421004513,1776901850082,-557.5788265,0.00017617,2]
[421004514,1776901850091,-977.0,0.00017678,2]
[421004515,1776901850100,-821.0,0.0001768,2]
[421004516,1776901850110,-1325.12869146,0.000177,2]
[421004517,1776901850119,-2000.0,0.00017716,2]
[421004518,1776901850128,-1653.95952957,0.00017778,2]
[421004519,1776901850137,-977.0,0.00017791,2]
[421004520,1776901850146,-200.6559977,0.00017837,14]
[421004521,1776901850156,-151.0,0.000179,2]
[421004522,1776901850165,-1325.12869146,0.000179,2]
[421004523,1776901850174,-1400.0,0.0001791,2]
[421004524,1776901850183,-1400.0,0.0001791,2]
[421004525,1776901850192,-1400.0,0.0001791,2]
[421004526,1776901850201,-1400.0,0.0001791,2]
[421004527,1776901850211,-1400.0,0.0001791,2]
[421004528,1776901850220,-1400.0,0.0001791,2]
[421004529,1776901850229,-1400.0,0.0001791,2]
[421004530,1776901850240,-1400.0,0.0001791,2]
[421004531,1776901850249,-1400.0,0.0001791,2]
[421004532,1776901850258,-982.0,0.0001791,2]
[421004533,1776901850268,-1500.0,0.00017956,2]
[421004534,1776901850277,-200.65599769,0.00017965,60]
[421004535,1776901850287,-2000.0,0.00018,2]
[421004536,1776901850296,-821.0,0.00018,2]
[421004537,1776901850306,-9417.22834034,0.00018042,2]
[421004538,1776901850315,-1750.0,0.00018078,2]
[421004539,1776901850325,-1750.0,0.00018078,2]
[421004540,1776901850334,-1750.0,0.00018078,2]
[421004541,1776901850343,-1750.0,0.00018078,2]
[421004542,1776901850353,-1750.0,0.00018078,2]
[421004543,1776901850362,-1750.0,0.00018078,2]
[421004544,1776901850371,-1750.0,0.00018078,2]
[421004545,1776901850380,-1750.0,0.00018078,2]
[421004546,1776901850389,-1750.0,0.00018078,2]
[421004547,1776901850399,-1278.0,0.00018078,2]
[421004548,1776901850408,-1190.0,0.00018082,2]
[421004549,1776901850417,-821.0,0.000181,2]
[421004550,1776901850426,-821.0,0.000181,2]
[421004551,1776901850435,-223.892382,0.00018105,2]
[421004552,1776901850445,-192.49536,0.00018105,7]
[421004553,1776901850454,-374.219314,0.00018105,2]
[421004554,1776901850463,-1240.573331,0.00018105,7]
[421004555,1776901850472,-455.80029,0.00018139,2]
[421004556,1776901850482,-273.65383862,0.0001814,2]
[421004557,1776901850491,-242.45869,0.00018163,2]
[421004558,1776901850500,-2487.15318209,0.00018165,2]
[421004559,1776901850510,-2000.0,0.000182,2]
[421004560,1776901850519,-202.05489831,0.0001824,7]
[421004561,1776901850528,-484.3513227,0.00018247,2]
[421004562,1776901850537,-2500.0,0.00018264,2]
[421004563,1776901850547,-312.0,0.00018278,2]
[421004564,1776901850556,-151.0,0.000183,2]
[421004565,1776901850565,-821.0,0.0001842,2]
[421004566,1776901850574,-2966.57094163,0.00018424,2]
[421004567,1776901850584,-400.0,0.00018475,2]
[421004568,1776901850593,-400.0,0.00018475,2]
[421004569,1776901850602,-400.0,0.00018475,2]
[421004570,1776901850612,-400.0,0.00018475,2]
[421004571,1776901850621,-400.0,0.00018475,2]
[421004572,1776901850630,-400.0,0.00018475,2]
[421004573,1776901850639,-400.0,0.00018475,2]
[421004574,1776901850649,-400.0,0.00018475,2]
[421004575,1776901850658,-446.0,0.00018475,2]
[421004576,1776901850667,-2000.0,0.00018504,2]
[421004577,1776901850677,-295.0,0.0001861,2]
[421004578,1776901850686,-84015.20784137,0.0001862,2]
[421004579,1776901850695,-2150.738,0.00018713,2]
[421004580,1776901850705,-821.0,0.0001874,2]
[421004581,1776901850714,-161.162066,0.00018765,2]
[421004582,1776901850723,-1000.0,0.0001877,2]
[421004583,1776901850732,-202.05489831,0.00018774,7]
[421004584,1776901850741,-202.05489831,0.00018774,7]
[421004585,1776901850750,-400.0,0.0001879,2]
[421004586,1776901850760,-400.0,0.0001879,3]